[Event "Late-Titled-Tuesday-Blitz-August-29-2023"]
[Site "Chess.com"]
[Date "2023.08.29"]
[Round "8"]
[White "GMMikhailKazakov"]
[Black "dorpato"]
[Result "1-0"]
[WhiteElo "2330"]
[BlackElo "2010"]
[TimeControl "180+1"]
[EndTime "15:27:59 PDT"]
[Termination "GMMikhailKazakov won by resignation"]

1. e4 {[%clk 0:02:57.3]} 1... c5 {[%clk 0:03:00]} 2. Nf3 {[%clk 0:02:57.3]} 2...
d6 {[%clk 0:03:00.4]} 3. c3 {[%clk 0:02:57.2]} 3... Nf6 {[%clk 0:02:59.3]} 4.
Be2 {[%clk 0:02:53.9]} 4... Bd7 {[%clk 0:02:53.8]} 5. e5 {[%clk 0:02:50.5]} 5...
dxe5 {[%clk 0:02:53.5]} 6. Nxe5 {[%clk 0:02:51.4]} 6... Nc6 {[%clk 0:02:52.6]}
7. Nxd7 {[%clk 0:02:47.7]} 7... Qxd7 {[%clk 0:02:52.1]} 8. O-O {[%clk
0:02:47.9]} 8... e6 {[%clk 0:02:52.2]} 9. d3 {[%clk 0:02:43.5]} 9... Bd6 {[%clk
0:02:52.5]} 10. Nd2 {[%clk 0:02:40.3]} 10... O-O {[%clk 0:02:51.8]} 11. Ne4
{[%clk 0:02:40.2]} 11... Nxe4 {[%clk 0:02:48.7]} 12. dxe4 {[%clk 0:02:40.9]}
12... Qc7 {[%clk 0:02:48.6]} 13. g3 {[%clk 0:02:39.9]} 13... Rad8 {[%clk
0:02:46.9]} 14. Qc2 {[%clk 0:02:38]} 14... Ne5 {[%clk 0:02:43.5]} 15. f4 {[%clk
0:02:31.1]} 15... Ng6 {[%clk 0:02:39.5]} 16. Be3 {[%clk 0:02:29.5]} 16... c4
{[%clk 0:02:36]} 17. Rad1 {[%clk 0:02:22.4]} 17... Bc5 {[%clk 0:02:33.6]} 18.
Qc1 {[%clk 0:02:17.4]} 18... Qb6 {[%clk 0:02:29.2]} 19. Bxc5 {[%clk 0:02:13.8]}
19... Qxc5+ {[%clk 0:02:29.6]} 20. Kg2 {[%clk 0:02:14.3]} 20... Ne7 {[%clk
0:02:24.6]} 21. Bf3 {[%clk 0:02:12]} 21... b5 {[%clk 0:02:18.8]} 22. Rxd8 {[%clk
0:02:07.7]} 22... Rxd8 {[%clk 0:02:17.7]} 23. Rd1 {[%clk 0:02:05.8]} 23... Qc7
{[%clk 0:02:10]} 24. Rd4 {[%clk 0:02:02.4]} 24... Nc6 {[%clk 0:01:54.9]} 25.
Rxd8+ {[%clk 0:02:01.3]} 25... Qxd8 {[%clk 0:01:47.4]} 26. Qe3 {[%clk
0:01:59.9]} 26... h6 {[%clk 0:01:31.4]} 27. e5 {[%clk 0:01:54.6]} 27... Ne7
{[%clk 0:01:26.1]} 28. Kf2 {[%clk 0:01:48.2]} 28... Nf5 {[%clk 0:01:19]} 29. Qe2
{[%clk 0:01:37.2]} 29... Qb6+ {[%clk 0:01:14.7]} 30. Kg2 {[%clk 0:01:36.6]}
30... Ne3+ {[%clk 0:01:13.2]} 31. Kh3 {[%clk 0:01:31.8]} 31... Nd5 {[%clk
0:01:05.3]} 32. Qd2 {[%clk 0:01:18.2]} 32... Qc5 {[%clk 0:00:58.9]} 33. Be4
{[%clk 0:01:12.4]} 33... a5 {[%clk 0:00:37.9]} 34. a3 {[%clk 0:01:07.2]} 34...
g6 {[%clk 0:00:26.2]} 35. Kg2 {[%clk 0:01:05.3]} 35... Ne3+ {[%clk 0:00:16.7]}
36. Kf3 {[%clk 0:01:02.1]} 36... Nd5 {[%clk 0:00:15.2]} 37. Bxd5 {[%clk
0:00:36.1]} 37... exd5 {[%clk 0:00:14.2]} 38. Qe3 {[%clk 0:00:35.9]} 38... Qc6
{[%clk 0:00:12.4]} 39. Qd4 {[%clk 0:00:33.4]} 39... Kf8 {[%clk 0:00:11.7]} 40.
g4 {[%clk 0:00:32]} 40... Ke7 {[%clk 0:00:11.4]} 41. f5 {[%clk 0:00:31]} 41...
g5 {[%clk 0:00:10]} 42. Ke3 {[%clk 0:00:27.5]} 42... a4 {[%clk 0:00:05.2]} 43.
Qa7+ {[%clk 0:00:26]} 43... Qd7 {[%clk 0:00:05.5]} 44. Qxd7+ {[%clk 0:00:18.7]}
44... Kxd7 {[%clk 0:00:05.8]} 45. Kd4 {[%clk 0:00:18]} 45... Kc6 {[%clk
0:00:06.3]} 46. f6 {[%clk 0:00:17.4]} 46... Kd7 {[%clk 0:00:03.6]} 47. Kxd5
{[%clk 0:00:17.3]} 47... Kc7 {[%clk 0:00:03.4]} 48. e6 {[%clk 0:00:17.1]} 48...
Kd8 {[%clk 0:00:02.7]} 49. exf7 {[%clk 0:00:15.4]} 1-0

[Event "Late-Titled-Tuesday-Blitz-August-29-2023"]
[Site "Chess.com"]
[Date "2023.08.29"]
[Round "8"]
[White "Chessdreamer2020"]
[Black "TC2304"]
[Result "1-0"]
[WhiteElo "2531"]
[BlackElo "2408"]
[TimeControl "180+1"]
[EndTime "15:28:05 PDT"]
[Termination "Chessdreamer2020 won by checkmate"]

1. e4 {[%clk 0:03:00]} 1... e6 {[%clk 0:03:00.3]} 2. b3 {[%clk 0:02:59.7]} 2...
d5 {[%clk 0:02:59.6]} 3. Bb2 {[%clk 0:03:00.2]} 3... dxe4 {[%clk 0:02:58.5]} 4.
Nc3 {[%clk 0:03:00.7]} 4... Nf6 {[%clk 0:02:58.5]} 5. Qe2 {[%clk 0:03:01.2]}
5... Nbd7 {[%clk 0:02:49.1]} 6. O-O-O {[%clk 0:03:01.1]} 6... b6 {[%clk
0:02:44.2]} 7. g4 {[%clk 0:02:58.1]} 7... h6 {[%clk 0:02:41.8]} 8. Bg2 {[%clk
0:02:55.9]} 8... Bb7 {[%clk 0:02:42.3]} 9. h4 {[%clk 0:02:55.4]} 9... Be7 {[%clk
0:02:25.8]} 10. g5 {[%clk 0:02:43.6]} 10... Nd5 {[%clk 0:02:13.8]} 11. Nxe4
{[%clk 0:02:39]} 11... Nf4 {[%clk 0:02:11.1]} 12. Qg4 {[%clk 0:02:29.9]} 12...
Nxg2 {[%clk 0:02:03.8]} 13. Qxg2 {[%clk 0:02:30.8]} 13... Nc5 {[%clk 0:02:01.1]}
14. f3 {[%clk 0:02:26.1]} 14... hxg5 {[%clk 0:01:45.8]} 15. hxg5 {[%clk
0:02:25.8]} 15... Rg8 {[%clk 0:01:18.1]} 16. Nxc5 {[%clk 0:02:19.9]} 16... Bxc5
{[%clk 0:01:12.3]} 17. Rh7 {[%clk 0:02:20]} 17... g6 {[%clk 0:01:09.7]} 18. Nh3
{[%clk 0:01:56.4]} 18... Bd4 {[%clk 0:00:56.5]} 19. Ba3 {[%clk 0:01:48.8]} 19...
c5 {[%clk 0:00:52.1]} 20. Nf2 {[%clk 0:01:40.7]} 20... Qd7 {[%clk 0:00:39.9]}
21. Ne4 {[%clk 0:01:36.2]} 21... Bxe4 {[%clk 0:00:39.3]} 22. fxe4 {[%clk
0:01:36.2]} 22... O-O-O {[%clk 0:00:35]} 23. Qf3 {[%clk 0:01:35.6]} 23... Rgf8
{[%clk 0:00:32.4]} 24. Rf1 {[%clk 0:01:18.6]} 24... Be5 {[%clk 0:00:32.2]} 25.
Qe2 {[%clk 0:01:11.6]} 25... Qd4 {[%clk 0:00:32.3]} 26. c3 {[%clk 0:01:09.2]}
26... Qd7 {[%clk 0:00:32.5]} 27. d4 {[%clk 0:01:00.8]} 27... cxd4 {[%clk
0:00:31.9]} 28. Bxf8 {[%clk 0:01:01.1]} 28... Rxf8 {[%clk 0:00:24.2]} 29. cxd4
{[%clk 0:00:55.7]} 29... Bxd4 {[%clk 0:00:22.7]} 30. e5 {[%clk 0:00:43.3]} 30...
Kb8 {[%clk 0:00:19.6]} 31. Kb1 {[%clk 0:00:43.3]} 31... Qc6 {[%clk 0:00:15.9]}
32. Rhxf7 {[%clk 0:00:18.7]} 32... Rc8 {[%clk 0:00:15.4]} 33. Rf8 {[%clk
0:00:06.6]} 33... Qc5 {[%clk 0:00:05.1]} 34. Rxc8+ {[%clk 0:00:06.3]} 34... Kxc8
{[%clk 0:00:06]} 35. Qc4 {[%clk 0:00:06.5]} 35... Qxc4 {[%clk 0:00:05.3]} 36.
bxc4 {[%clk 0:00:07.4]} 36... Bxe5 {[%clk 0:00:05.9]} 37. Re1 {[%clk 0:00:07.7]}
37... Bf4 {[%clk 0:00:06.4]} 38. Rxe6 {[%clk 0:00:08.3]} 38... Bxg5 {[%clk
0:00:06.8]} 39. Rxg6 {[%clk 0:00:09.2]} 39... Be3 {[%clk 0:00:06.9]} 40. Rg7
{[%clk 0:00:09.1]} 40... a5 {[%clk 0:00:04.6]} 41. Kc2 {[%clk 0:00:09.3]} 41...
Bf4 {[%clk 0:00:05]} 42. Kb3 {[%clk 0:00:08.8]} 42... Bc7 {[%clk 0:00:05.6]} 43.
Ka4 {[%clk 0:00:08.5]} 43... Kb7 {[%clk 0:00:06.2]} 44. Kb5 {[%clk 0:00:08.7]}
44... Kb8 {[%clk 0:00:06.6]} 45. Kc6 {[%clk 0:00:08.6]} 45... Bd8 {[%clk
0:00:04.1]} 46. Rg8 {[%clk 0:00:07.8]} 46... Kc8 {[%clk 0:00:04.5]} 47. Rh8
{[%clk 0:00:07.4]} 47... a4 {[%clk 0:00:03.7]} 48. Rg8 {[%clk 0:00:07.8]} 48...
a3 {[%clk 0:00:03.9]} 49. Rh8 {[%clk 0:00:07.9]} 49... b5 {[%clk 0:00:04.6]} 50.
cxb5 {[%clk 0:00:08.1]} 50... Kb8 {[%clk 0:00:04.9]} 51. Rxd8+ {[%clk
0:00:08.6]} 51... Ka7 {[%clk 0:00:05.8]} 52. b6+ {[%clk 0:00:09.5]} 52... Ka6
{[%clk 0:00:05.9]} 53. Ra8# {[%clk 0:00:10.4]} 1-0

[Event "Late-Titled-Tuesday-Blitz-August-29-2023"]
[Site "Chess.com"]
[Date "2023.08.29"]
[Round "8"]
[White "MathiasCasalaspro"]
[Black "Haykoooo0o"]
[Result "0-1"]
[WhiteElo "2256"]
[BlackElo "2467"]
[TimeControl "180+1"]
[EndTime "15:28:05 PDT"]
[Termination "Haykoooo0o won on time"]

1. e4 {[%clk 0:03:00.9]} 1... c6 {[%clk 0:02:58.9]} 2. d4 {[%clk 0:03:00.7]}
2... d5 {[%clk 0:02:59.6]} 3. Nc3 {[%clk 0:03:01.6]} 3... dxe4 {[%clk
0:02:59.7]} 4. Nxe4 {[%clk 0:03:02.5]} 4... Nd7 {[%clk 0:03:00.3]} 5. Qe2 {[%clk
0:02:45.7]} 5... Ndf6 {[%clk 0:02:59]} 6. Nxf6+ {[%clk 0:02:44.4]} 6... Nxf6
{[%clk 0:02:59.9]} 7. Be3 {[%clk 0:02:45]} 7... Bg4 {[%clk 0:02:59]} 8. Nf3
{[%clk 0:02:43.9]} 8... Qd5 {[%clk 0:02:58.6]} 9. c4 {[%clk 0:02:26.9]} 9...
Bxf3 {[%clk 0:02:57.4]} 10. Qxf3 {[%clk 0:02:27.6]} 10... Qxf3 {[%clk 0:02:57]}
11. gxf3 {[%clk 0:02:28.5]} 11... e6 {[%clk 0:02:57.4]} 12. O-O-O {[%clk
0:02:28.1]} 12... O-O-O {[%clk 0:02:55.4]} 13. Bh3 {[%clk 0:02:25.1]} 13... g6
{[%clk 0:02:53.6]} 14. Bg5 {[%clk 0:02:18.8]} 14... Be7 {[%clk 0:02:52.9]} 15.
Bxf6 {[%clk 0:02:17.3]} 15... Bxf6 {[%clk 0:02:52.1]} 16. d5 {[%clk 0:02:18.2]}
16... cxd5 {[%clk 0:01:38.1]} 17. cxd5 {[%clk 0:02:19.1]} 17... Rhe8 {[%clk
0:01:32.2]} 18. Rhe1 {[%clk 0:02:18.3]} 18... Bg5+ {[%clk 0:01:25.1]} 19. Kb1
{[%clk 0:02:16.8]} 19... f5 {[%clk 0:01:22.9]} 20. Bf1 {[%clk 0:01:18.5]} 20...
exd5 {[%clk 0:01:16.3]} 21. Bb5 {[%clk 0:01:11]} 21... Rxe1 {[%clk 0:01:09.2]}
22. Rxe1 {[%clk 0:01:11.9]} 22... a6 {[%clk 0:01:08.9]} 23. Bd3 {[%clk
0:01:10.2]} 23... Kd7 {[%clk 0:01:05.9]} 24. h4 {[%clk 0:01:00.8]} 24... Bxh4
{[%clk 0:00:53.7]} 25. Rh1 {[%clk 0:01:00.8]} 25... Bxf2 {[%clk 0:00:54.2]} 26.
Rxh7+ {[%clk 0:01:00.8]} 26... Kc6 {[%clk 0:00:54.8]} 27. Rg7 {[%clk 0:00:57.3]}
27... Rd6 {[%clk 0:00:53.5]} 28. Kc2 {[%clk 0:00:51.5]} 28... Bd4 {[%clk
0:00:49.6]} 29. Rg8 {[%clk 0:00:51.5]} 29... b5 {[%clk 0:00:41.2]} 30. b3 {[%clk
0:00:51]} 30... Kb6 {[%clk 0:00:40.9]} 31. Rb8+ {[%clk 0:00:46.3]} 31... Ka5
{[%clk 0:00:38.5]} 32. a3 {[%clk 0:00:35.9]} 32... Rb6 {[%clk 0:00:25.9]} 33.
Rc8 {[%clk 0:00:18.9]} 33... b4 {[%clk 0:00:19.2]} 34. a4 {[%clk 0:00:16.4]}
34... Rd6 {[%clk 0:00:18.3]} 35. Rb8 {[%clk 0:00:14.8]} 35... Bb6 {[%clk
0:00:16.9]} 36. Ra8 {[%clk 0:00:14.9]} 36... Be3 {[%clk 0:00:15.1]} 37. Rb8
{[%clk 0:00:13.5]} 37... Rf6 {[%clk 0:00:13.1]} 38. Rd8 {[%clk 0:00:05.5]} 38...
Rc6+ {[%clk 0:00:11.8]} 39. Kb1 {[%clk 0:00:04.3]} 39... d4 {[%clk 0:00:08.8]}
40. Rb8 {[%clk 0:00:02.5]} 40... Rd6 {[%clk 0:00:05.7]} 41. Rg8 {[%clk
0:00:02.3]} 41... Rf6 {[%clk 0:00:05.7]} 42. Rc8 {[%clk 0:00:02.1]} 42... Kb6
{[%clk 0:00:04.9]} 43. Rb8+ {[%clk 0:00:02.4]} 43... Kc5 {[%clk 0:00:04.6]} 44.
Ra8 {[%clk 0:00:02.6]} 44... a5 {[%clk 0:00:04.1]} 45. Rc8+ {[%clk 0:00:02.9]}
45... Kd5 {[%clk 0:00:04.2]} 46. Kc2 {[%clk 0:00:03.2]} 46... Ke5 {[%clk
0:00:04.5]} 47. Re8+ {[%clk 0:00:03.2]} 47... Kf4 {[%clk 0:00:04.9]} 48. Be2
{[%clk 0:00:03.5]} 48... g5 {[%clk 0:00:05.1]} 49. Rc8 {[%clk 0:00:01.5]} 49...
Rd6 {[%clk 0:00:04.8]} 0-1

[Event "Late-Titled-Tuesday-Blitz-August-29-2023"]
[Site "Chess.com"]
[Date "2023.08.29"]
[Round "8"]
[White "Aygehovit1992"]
[Black "only_strong_moves"]
[Result "0-1"]
[WhiteElo "2705"]
[BlackElo "2549"]
[TimeControl "180+1"]
[EndTime "15:28:15 PDT"]
[Termination "only_strong_moves won by resignation"]

1. Nf3 {[%clk 0:03:00.9]} 1... Nf6 {[%clk 0:02:58.8]} 2. g3 {[%clk 0:03:00.3]}
2... d5 {[%clk 0:02:58.1]} 3. Bg2 {[%clk 0:03:00]} 3... e6 {[%clk 0:02:58.3]} 4.
O-O {[%clk 0:02:59.9]} 4... Be7 {[%clk 0:02:58.9]} 5. d3 {[%clk 0:03:00]} 5...
O-O {[%clk 0:02:58.7]} 6. Nbd2 {[%clk 0:03:00]} 6... Nc6 {[%clk 0:02:58.5]} 7.
e4 {[%clk 0:02:55.6]} 7... dxe4 {[%clk 0:02:57.9]} 8. dxe4 {[%clk 0:02:56.5]}
8... e5 {[%clk 0:02:55]} 9. Qe2 {[%clk 0:02:56.7]} 9... Bg4 {[%clk 0:02:52.1]}
10. c3 {[%clk 0:02:56.6]} 10... Qc8 {[%clk 0:02:43.5]} 11. Nc4 {[%clk
0:02:55.6]} 11... Bc5 {[%clk 0:01:50.9]} 12. Bg5 {[%clk 0:02:45.6]} 12... Nd7
{[%clk 0:01:44.8]} 13. h3 {[%clk 0:02:35.1]} 13... Be6 {[%clk 0:01:38.8]} 14. b4
{[%clk 0:02:11.9]} 14... Be7 {[%clk 0:01:28.8]} 15. Bxe7 {[%clk 0:02:03.5]}
15... Bxc4 {[%clk 0:01:25.9]} 16. Qxc4 {[%clk 0:02:01]} 16... Nxe7 {[%clk
0:01:26.1]} 17. h4 {[%clk 0:01:56.8]} 17... Nb6 {[%clk 0:01:20]} 18. Qc5 {[%clk
0:01:56.7]} 18... Ng6 {[%clk 0:00:43.7]} 19. Nxe5 {[%clk 0:01:53.7]} 19... Na4
{[%clk 0:00:32.2]} 20. Nxg6 {[%clk 0:01:52.5]} 20... hxg6 {[%clk 0:00:32]} 21.
Qc4 {[%clk 0:01:41.1]} 21... Nb6 {[%clk 0:00:27.5]} 22. Qb3 {[%clk 0:01:34]}
22... a5 {[%clk 0:00:28.1]} 23. e5 {[%clk 0:01:27.8]} 23... a4 {[%clk
0:00:21.5]} 24. Qc2 {[%clk 0:01:24]} 24... Qe6 {[%clk 0:00:20.6]} 25. Rfe1
{[%clk 0:01:21.5]} 25... c6 {[%clk 0:00:20.4]} 26. Re4 {[%clk 0:01:03.1]} 26...
Rad8 {[%clk 0:00:18.8]} 27. c4 {[%clk 0:01:02.5]} 27... Rd7 {[%clk 0:00:07.2]}
28. Rae1 {[%clk 0:00:56.7]} 28... Rfd8 {[%clk 0:00:06.8]} 29. R1e2 {[%clk
0:00:56.9]} 29... Qe7 {[%clk 0:00:04.7]} 30. c5 {[%clk 0:00:53.5]} 30... Nd5
{[%clk 0:00:05.3]} 31. Bh3 {[%clk 0:00:51]} 31... Rc7 {[%clk 0:00:03.6]} 32. e6
{[%clk 0:00:51.4]} 32... f5 {[%clk 0:00:03.4]} 33. Rd4 {[%clk 0:00:48.8]} 33...
Qf6 {[%clk 0:00:02.1]} 34. Qd2 {[%clk 0:00:46.8]} 34... Re7 {[%clk 0:00:01.8]}
35. b5 {[%clk 0:00:27.9]} 35... Rxe6 {[%clk 0:00:02.1]} 36. Rxe6 {[%clk
0:00:28]} 36... Qxe6 {[%clk 0:00:03]} 37. bxc6 {[%clk 0:00:28.6]} 37... bxc6
{[%clk 0:00:03.9]} 38. Rxa4 {[%clk 0:00:28]} 38... Qe7 {[%clk 0:00:02.7]} 39.
Rd4 {[%clk 0:00:24.2]} 39... f4 {[%clk 0:00:02.5]} 40. Bg2 {[%clk 0:00:20.8]}
40... fxg3 {[%clk 0:00:02.3]} 41. fxg3 {[%clk 0:00:21]} 41... Qxc5 {[%clk
0:00:01.9]} 42. Kh2 {[%clk 0:00:21.6]} 42... Kh7 {[%clk 0:00:01.5]} 43. a4
{[%clk 0:00:20.2]} 43... Rf8 {[%clk 0:00:01.7]} 44. h5 {[%clk 0:00:17.9]} 44...
gxh5 {[%clk 0:00:01.4]} 45. Rh4 {[%clk 0:00:13.8]} 45... g6 {[%clk 0:00:01.3]}
46. a5 {[%clk 0:00:11.3]} 46... Ne3 {[%clk 0:00:01.9]} 47. Qd7+ {[%clk
0:00:05.6]} 47... Kh6 {[%clk 0:00:02.6]} 48. Qd2 {[%clk 0:00:06.1]} 48... Kg7
{[%clk 0:00:02]} 49. Rf4 {[%clk 0:00:05.4]} 49... Rxf4 {[%clk 0:00:02]} 50. gxf4
{[%clk 0:00:05.7]} 50... Ng4+ {[%clk 0:00:02.9]} 51. Kg3 {[%clk 0:00:05.1]}
51... Qa3+ {[%clk 0:00:03.2]} 52. Bf3 {[%clk 0:00:05.6]} 52... Nf6 {[%clk
0:00:02.2]} 53. f5 {[%clk 0:00:04.1]} 53... Ne4+ {[%clk 0:00:02.2]} 54. Kf4
{[%clk 0:00:03.4]} 54... Nxd2 {[%clk 0:00:03.1]} 0-1

[Event "Late-Titled-Tuesday-Blitz-August-29-2023"]
[Site "Chess.com"]
[Date "2023.08.29"]
[Round "8"]
[White "ArmanGhevondyanchess"]
[Black "XiaoKangZhong"]
[Result "1-0"]
[WhiteElo "2349"]
[BlackElo "2540"]
[TimeControl "180+1"]
[EndTime "15:28:16 PDT"]
[Termination "ArmanGhevondyanchess won by resignation"]

1. Nf3 {[%clk 0:03:00.9]} 1... Nf6 {[%clk 0:02:56.7]} 2. d4 {[%clk 0:03:01.1]}
2... e6 {[%clk 0:02:56.1]} 3. g3 {[%clk 0:03:01.7]} 3... c5 {[%clk 0:02:39.7]}
4. Bg2 {[%clk 0:03:02.6]} 4... cxd4 {[%clk 0:02:39.3]} 5. O-O {[%clk 0:03:02.5]}
5... Nc6 {[%clk 0:02:38.4]} 6. Nxd4 {[%clk 0:03:02.3]} 6... a6 {[%clk
0:02:35.7]} 7. c4 {[%clk 0:03:02.3]} 7... Qc7 {[%clk 0:02:33]} 8. b3 {[%clk
0:03:01]} 8... Bc5 {[%clk 0:02:27.1]} 9. Bb2 {[%clk 0:03:00.9]} 9... O-O {[%clk
0:02:27.4]} 10. e3 {[%clk 0:02:52.2]} 10... e5 {[%clk 0:02:10.8]} 11. Nc2 {[%clk
0:02:43.1]} 11... b5 {[%clk 0:02:08.4]} 12. cxb5 {[%clk 0:02:29.3]} 12... axb5
{[%clk 0:02:08.2]} 13. Nc3 {[%clk 0:02:27.9]} 13... b4 {[%clk 0:01:58.3]} 14.
Na4 {[%clk 0:02:24.8]} 14... Be7 {[%clk 0:01:47.6]} 15. Rc1 {[%clk 0:02:23.1]}
15... d5 {[%clk 0:01:39.7]} 16. Qd2 {[%clk 0:01:24.3]} 16... Rd8 {[%clk
0:01:33.1]} 17. Rfd1 {[%clk 0:01:24.3]} 17... Qd6 {[%clk 0:01:21.2]} 18. Ne1
{[%clk 0:01:14.2]} 18... Ba6 {[%clk 0:01:17.9]} 19. Nb6 {[%clk 0:01:10]} 19...
Rab8 {[%clk 0:01:15.1]} 20. Nxd5 {[%clk 0:01:09.1]} 20... Nxd5 {[%clk
0:01:05.1]} 21. Qxd5 {[%clk 0:01:08.2]} 21... Qxd5 {[%clk 0:00:57.6]} 22. Bxd5
{[%clk 0:01:09.1]} 22... Bb5 {[%clk 0:00:37.3]} 23. Bf3 {[%clk 0:00:47]} 23...
Rxd1 {[%clk 0:00:29.1]} 24. Rxd1 {[%clk 0:00:47.9]} 24... Kf8 {[%clk 0:00:22.1]}
25. Rc1 {[%clk 0:00:40.9]} 25... Rb6 {[%clk 0:00:20.7]} 26. Bxc6 {[%clk
0:00:29.8]} 26... Bxc6 {[%clk 0:00:20.9]} 27. Bxe5 {[%clk 0:00:26.9]} 27... f6
{[%clk 0:00:20.9]} 28. Bd4 {[%clk 0:00:22.5]} 28... Ra6 {[%clk 0:00:20.8]} 29.
Rc2 {[%clk 0:00:22.4]} 29... Be4 {[%clk 0:00:20.8]} 30. Rd2 {[%clk 0:00:18.2]}
30... Rc6 {[%clk 0:00:20.5]} 31. f3 {[%clk 0:00:18.3]} 31... Bg6 {[%clk
0:00:20.8]} 32. e4 {[%clk 0:00:17.5]} 32... Rc1 {[%clk 0:00:20.8]} 33. Kf2
{[%clk 0:00:17.7]} 33... f5 {[%clk 0:00:20.4]} 34. Be3 {[%clk 0:00:15.6]} 34...
Rc8 {[%clk 0:00:12.3]} 35. e5 {[%clk 0:00:15.2]} 35... Kf7 {[%clk 0:00:12.1]}
36. f4 {[%clk 0:00:15.7]} 36... Ke6 {[%clk 0:00:11.4]} 37. Nf3 {[%clk
0:00:16.3]} 37... Ra8 {[%clk 0:00:04.8]} 38. Nd4+ {[%clk 0:00:16.4]} 38... Kf7
{[%clk 0:00:05.4]} 39. Nc6 {[%clk 0:00:15]} 39... Bf8 {[%clk 0:00:05.9]} 40.
Nd8+ {[%clk 0:00:09.8]} 40... Ke8 {[%clk 0:00:05.4]} 41. Ne6 {[%clk 0:00:09.8]}
41... Be7 {[%clk 0:00:02.5]} 42. Nc7+ {[%clk 0:00:10]} 42... Kf7 {[%clk
0:00:02.6]} 43. Nxa8 {[%clk 0:00:10.9]} 43... Ke6 {[%clk 0:00:01.4]} 44. Nb6
{[%clk 0:00:10.9]} 44... Be8 {[%clk 0:00:01.7]} 45. Nc4 {[%clk 0:00:11.1]} 45...
Bc6 {[%clk 0:00:01.5]} 46. Rd6+ {[%clk 0:00:09.9]} 46... Bxd6 {[%clk 0:00:01.5]}
47. exd6 {[%clk 0:00:10.8]} 47... Bd5 {[%clk 0:00:02]} 48. Bc5 {[%clk
0:00:10.9]} 48... Bc6 {[%clk 0:00:02.4]} 49. Bxb4 {[%clk 0:00:11.3]} 49... g6
{[%clk 0:00:02.8]} 50. a4 {[%clk 0:00:11.6]} 50... Kd5 {[%clk 0:00:03.3]} 51.
Nb6+ {[%clk 0:00:10.8]} 51... Ke6 {[%clk 0:00:03.6]} 52. d7 {[%clk 0:00:11.1]}
52... Bxd7 {[%clk 0:00:04.1]} 53. Nxd7 {[%clk 0:00:12]} 53... Kxd7 {[%clk
0:00:04.8]} 54. a5 {[%clk 0:00:12.5]} 54... Kc6 {[%clk 0:00:05.5]} 55. Bc3
{[%clk 0:00:13]} 55... Kb5 {[%clk 0:00:05.8]} 56. b4 {[%clk 0:00:13.9]} 56...
Ka6 {[%clk 0:00:06.2]} 57. Be1 {[%clk 0:00:14.8]} 57... Kb5 {[%clk 0:00:07]} 58.
Ke3 {[%clk 0:00:15.7]} 58... Ka6 {[%clk 0:00:07.8]} 59. Kd4 {[%clk 0:00:16.6]}
59... Kb5 {[%clk 0:00:08.6]} 60. Ke5 {[%clk 0:00:17.5]} 60... h6 {[%clk
0:00:09]} 61. Kf6 {[%clk 0:00:17.9]} 61... h5 {[%clk 0:00:09.6]} 62. Kxg6 {[%clk
0:00:18.2]} 62... h4 {[%clk 0:00:10.5]} 63. gxh4 {[%clk 0:00:18.8]} 63... Ka6
{[%clk 0:00:10.9]} 64. h5 {[%clk 0:00:19.7]} 64... Kb5 {[%clk 0:00:11.8]} 65. h6
{[%clk 0:00:20.6]} 65... Ka6 {[%clk 0:00:12.7]} 66. h7 {[%clk 0:00:21.5]} 66...
Kb5 {[%clk 0:00:13.5]} 67. Kxf5 {[%clk 0:00:21.9]} 67... Ka6 {[%clk 0:00:14.4]}
68. Kf6 {[%clk 0:00:22.8]} 68... Kb5 {[%clk 0:00:15.3]} 69. Ke6 {[%clk
0:00:23.5]} 69... Ka6 {[%clk 0:00:16.2]} 70. Kd6 {[%clk 0:00:24.2]} 70... Kb5
{[%clk 0:00:17.1]} 71. Kd5 {[%clk 0:00:24.6]} 71... Ka6 {[%clk 0:00:18]} 72. Kc6
{[%clk 0:00:25.1]} 72... Ka7 {[%clk 0:00:16.9]} 73. b5 {[%clk 0:00:25.2]} 73...
Kb8 {[%clk 0:00:17.5]} 74. Bh4 {[%clk 0:00:24.9]} 74... Ka8 {[%clk 0:00:18.4]}
1-0

[Event "Late-Titled-Tuesday-Blitz-August-29-2023"]
[Site "Chess.com"]
[Date "2023.08.29"]
[Round "8"]
[White "Mourinho_Jose"]
[Black "Alexei_Gubajdullin"]
[Result "1-0"]
[WhiteElo "2510"]
[BlackElo "2602"]
[TimeControl "180+1"]
[EndTime "15:28:16 PDT"]
[Termination "Mourinho_Jose won on time"]

1. Nf3 {[%clk 0:03:00]} 1... Nf6 {[%clk 0:02:59.1]} 2. g3 {[%clk 0:02:59.9]}
2... g6 {[%clk 0:02:59.1]} 3. Bg2 {[%clk 0:03:00.4]} 3... Bg7 {[%clk 0:02:59.2]}
4. O-O {[%clk 0:03:01.3]} 4... O-O {[%clk 0:02:59.5]} 5. d4 {[%clk 0:03:00.3]}
5... d6 {[%clk 0:02:59.6]} 6. c4 {[%clk 0:03:00.2]} 6... Nbd7 {[%clk 0:02:59.5]}
7. Nc3 {[%clk 0:03:00.5]} 7... e5 {[%clk 0:02:59.6]} 8. e4 {[%clk 0:03:00.9]}
8... c6 {[%clk 0:02:59.8]} 9. Re1 {[%clk 0:03:00.8]} 9... Re8 {[%clk 0:02:59.8]}
10. h3 {[%clk 0:03:00.7]} 10... a5 {[%clk 0:02:57.9]} 11. Rb1 {[%clk 0:03:00.3]}
11... exd4 {[%clk 0:02:56]} 12. Nxd4 {[%clk 0:03:01.2]} 12... Nc5 {[%clk
0:02:56.2]} 13. b3 {[%clk 0:03:01.2]} 13... Nfd7 {[%clk 0:02:54.5]} 14. f4
{[%clk 0:02:47.9]} 14... h5 {[%clk 0:02:52.7]} 15. a3 {[%clk 0:02:42.5]} 15...
h4 {[%clk 0:02:50.9]} 16. g4 {[%clk 0:02:38.3]} 16... Ne6 {[%clk 0:02:45.8]} 17.
Nxe6 {[%clk 0:02:13.2]} 17... fxe6 {[%clk 0:02:33.2]} 18. e5 {[%clk 0:02:01.4]}
18... dxe5 {[%clk 0:02:30.6]} 19. Ne4 {[%clk 0:02:01]} 19... exf4 {[%clk
0:02:28.5]} 20. Bxf4 {[%clk 0:01:57]} 20... Ne5 {[%clk 0:02:26.1]} 21. Nd6
{[%clk 0:01:51.7]} 21... Nf7 {[%clk 0:02:04.5]} 22. Nxe8 {[%clk 0:01:44.4]}
22... Qxe8 {[%clk 0:02:04.4]} 23. Qd3 {[%clk 0:01:36.7]} 23... g5 {[%clk
0:01:51.3]} 24. Bd2 {[%clk 0:01:21.9]} 24... Qd7 {[%clk 0:01:43.8]} 25. Qxd7
{[%clk 0:01:16.1]} 25... Bxd7 {[%clk 0:01:43.7]} 26. Rbd1 {[%clk 0:01:17]} 26...
a4 {[%clk 0:01:18.2]} 27. b4 {[%clk 0:01:05.2]} 27... Rd8 {[%clk 0:00:58.8]} 28.
Be3 {[%clk 0:01:03.2]} 28... Bb2 {[%clk 0:00:55]} 29. Bb6 {[%clk 0:01:01.9]}
29... Re8 {[%clk 0:00:50.3]} 30. Rxd7 {[%clk 0:01:01.1]} 30... Bxa3 {[%clk
0:00:50.5]} 31. b5 {[%clk 0:00:49.1]} 31... Bb2 {[%clk 0:00:43.5]} 32. Bd4
{[%clk 0:00:38.1]} 32... a3 {[%clk 0:00:36.6]} 33. Bxb2 {[%clk 0:00:37.2]} 33...
axb2 {[%clk 0:00:36.6]} 34. Rd2 {[%clk 0:00:29]} 34... Ne5 {[%clk 0:00:32.2]}
35. Rxb2 {[%clk 0:00:29.3]} 35... Nd3 {[%clk 0:00:27.9]} 36. Reb1 {[%clk
0:00:26.2]} 36... Nxb2 {[%clk 0:00:26]} 37. Rxb2 {[%clk 0:00:27.1]} 37... Rc8
{[%clk 0:00:22.1]} 38. bxc6 {[%clk 0:00:26.7]} 38... bxc6 {[%clk 0:00:21.9]} 39.
Rb6 {[%clk 0:00:27.1]} 39... Kf7 {[%clk 0:00:21.3]} 40. Rxc6 {[%clk 0:00:26]}
40... Rb8 {[%clk 0:00:21.6]} 41. c5 {[%clk 0:00:23.1]} 41... Rb1+ {[%clk
0:00:21.1]} 42. Kf2 {[%clk 0:00:21.8]} 42... Rb2+ {[%clk 0:00:21]} 43. Kf3
{[%clk 0:00:21.8]} 43... Kf6 {[%clk 0:00:20.8]} 44. Rc8 {[%clk 0:00:18.1]} 44...
Rc2 {[%clk 0:00:18.7]} 45. c6 {[%clk 0:00:17.5]} 45... Ke5 {[%clk 0:00:17.9]}
46. Bf1 {[%clk 0:00:14.8]} 46... Rc3+ {[%clk 0:00:16.7]} 47. Kf2 {[%clk
0:00:13.4]} 47... Ke4 {[%clk 0:00:04.2]} 48. Re8 {[%clk 0:00:10.8]} 48... Rc2+
{[%clk 0:00:02.7]} 49. Ke1 {[%clk 0:00:10.8]} 49... e5 {[%clk 0:00:01.6]} 50.
Rd8 {[%clk 0:00:05.4]} 1-0